fUST/lending_fUST_20240902
["ID","MTS","AMOUNT","RATE_DAILY","PERIOD"]
[336989326,1725287446411,-500.0,0.00045,10]
[336989327,1725287446422,-151.0,0.00045,120]
[336989328,1725287446432,-151.0,0.00045,120]
[336989329,1725287446443,-4000.0,0.00045,60]
[336989330,1725287446453,-4000.0,0.00045,60]
[336989331,1725287446464,-4000.0,0.00045,60]
[336989332,1725287446476,-492.10544,0.00045,60]
[336989333,1725287446486,-1000.0,0.00045548,10]
[336989334,1725287446496,-1500.0,0.00046446,10]
[336989335,1725287446517,-150.112233,0.000465,10]
[336989336,1725287446534,-2000.0,0.00047551,10]
[336989337,1725287446544,-500.0,0.00048,30]
[336989338,1725287446554,-184.0,0.00048,90]
[336989339,1725287446564,-3004.35725098,0.00048,120]
[336989340,1725287446574,-157.0,0.00048,90]
[336989341,1725287446584,-1326.86586166,0.000482,2]
[336989342,1725287446594,-150.112233,0.000482,11]
[336989343,1725287446603,-500.0,0.00048288,120]
[336989344,1725287446612,-500.0,0.00048288,120]
[336989345,1725287446623,-500.0,0.00048288,120]
[336989346,1725287446632,-500.0,0.00048288,120]
[336989347,1725287446642,-500.0,0.00048288,120]
[336989348,1725287446652,-500.0,0.00048288,120]
[336989349,1725287446663,-500.0,0.00048288,120]
[336989350,1725287446674,-500.0,0.00048288,120]
[336989351,1725287446683,-500.0,0.00048288,120]
[336989352,1725287446693,-500.0,0.00048288,120]
[336989353,1725287446702,-500.0,0.00048288,120]
[336989354,1725287446712,-500.0,0.00048288,120]
[336989355,1725287446722,-227.83243911,0.00048288,120]
[336989356,1725287446732,-500.0,0.00048288,120]
[336989357,1725287446742,-456.14075825,0.00048288,120]
[336989358,1725287446752,-500.0,0.00048288,120]
[336989359,1725287446761,-500.0,0.00048288,120]
[336989360,1725287446831,-500.0,0.00048288,120]
[336989361,1725287446841,-500.0,0.00048288,120]
[336989362,1725287446851,-500.0,0.00048288,120]
[336989363,1725287446861,-500.0,0.00048288,120]
[336989364,1725287446872,-9980.72805082,0.00048289,61]
[336989365,1725287446883,-118834.04241554,0.00048289,14]
[336989366,1725287457119,230.52,0.00021,2]
[336989369,1725287707667,10000.0,0.00021,2]
[336989370,1725287714555,10000.0,0.00021,2]
[336989371,1725287720474,10000.0,0.00021,2]
[336989372,1725287727006,10000.0,0.00021,2]
[336989373,1725287734691,10000.0,0.00021,2]
[336989419,1725288638228,-300.0,0.00023052,2]
[336989420,1725288638239,-300.0,0.00023052,2]
[336989421,1725288638249,-24900.0,0.00023053,2]
[336989422,1725288638258,-277.66471,0.00023228,2]
[336989423,1725288638268,-250.0,0.00023395,2]
[336989424,1725288638278,-250.0,0.0002346,2]
[336989425,1725288638288,-1752.96061661,0.00023475,2]
[336989426,1725288638297,-250.0,0.00023524,2]
[336989427,1725288638307,-3000.0,0.00023586,2]
[336989428,1725288638316,-250.0,0.00023588,2]
[336989429,1725288638326,-428.7600084,0.00023631,2]
[336989430,1725288638336,-250.0,0.00023652,2]
[336989431,1725288638345,-250.0,0.00023716,2]
[336989432,1725288638354,-250.0,0.0002378,2]
[336989433,1725288638364,-251.0,0.00023786,2]
[336989434,1725288638374,-203.919312,0.00023832,2]
[336989435,1725288638383,-250.0,0.00023845,2]
[336989436,1725288638394,-255.865993,0.00023859,2]
[336989437,1725288638403,-250.0,0.00023909,2]
[336989438,1725288638412,-250.0,0.00023973,2]
[336989439,1725288638422,-250.0,0.00024037,2]
[336989440,1725288638431,-250.0,0.00024101,2]
[336989441,1725288638440,-250.0,0.00024165,2]
[336989442,1725288638449,-250.0,0.0002423,2]
[336989443,1725288638458,-250.0,0.00024294,2]
[336989444,1725288638468,-250.0,0.00024358,2]
[336989445,1725288638476,-250.0,0.00024422,2]
[336989446,1725288638486,-250.0,0.00024486,2]
[336989447,1725288638495,-250.0,0.0002455,2]
[336989448,1725288638505,-250.0,0.00024615,2]
[336989449,1725288638514,-3948.77391727,0.00024706,2]
[336989450,1725288638523,-608.0,0.00025,2]
[336989451,1725288638533,-420.0,0.00025023,2]
[336989452,1725288638542,-1061.49268932,0.0002533,2]
[336989453,1725288638552,-420.0,0.00025357,2]
[336989454,1725288638561,-3000.0,0.000254,2]
[336989455,1725288638570,-500.0,0.00025408,2]
[336989456,1725288638579,-850.94381413,0.00025408,2]
[336989457,1725288638588,-500.0,0.00025408,2]
[336989458,1725288638659,-500.0,0.00025408,2]
[336989459,1725288638669,-850.94381413,0.00025408,2]
[336989460,1725288638678,-500.0,0.00025408,2]
[336989461,1725288638687,-500.0,0.00025408,2]
[336989462,1725288638696,-500.0,0.00025408,2]
[336989463,1725288638705,-850.94381413,0.00025408,2]
[336989464,1725288638715,-850.94381413,0.00025408,2]
[336989465,1725288638724,-441.16281248,0.00025408,2]
[336989466,1725288638733,-375.57932489,0.00025408,2]
[336989467,1725288638742,-850.94381413,0.00025408,2]
[336989468,1725288638752,-500.0,0.00025408,2]
[336989469,1725288638761,-850.94381413,0.00025408,2]
[336989470,1725288638770,-850.94381413,0.00025408,2]
[336989471,1725288638779,-850.94381413,0.00025408,2]
[336989472,1725288638788,-850.94381413,0.00025408,2]
[336989473,1725288638798,-850.94381413,0.00025408,2]
[336989474,1725288638807,-850.94381413,0.00025408,2]
[336989475,1725288638817,-850.94381413,0.00025408,2]
[336989476,1725288638826,-500.0,0.00025408,2]
[336989477,1725288638835,-850.94381413,0.00025408,2]
[336989478,1725288638844,-500.0,0.00025408,2]
[336989479,1725288638853,-850.94381413,0.00025408,2]
[336989480,1725288638862,-850.94381413,0.00025408,2]
[336989481,1725288638871,-512.12158342,0.00025408,2]
[336989482,1725288638880,-850.94381413,0.00025408,2]
[336989483,1725288638889,-850.94381413,0.00025408,2]
[336989484,1725288638903,-850.94381413,0.00025408,2]
[336989485,1725288638912,-850.94381413,0.00025408,2]
[336989486,1725288638922,-850.94381413,0.00025408,2]
[336989487,1725288638931,-850.94381413,0.00025408,2]
[336989488,1725288638941,-850.94381413,0.00025408,2]
[336989489,1725288638950,-850.94381413,0.00025408,2]
[336989490,1725288638959,-850.94381413,0.00025408,2]
[336989491,1725288638968,-850.94381413,0.00025408,2]
[336989492,1725288638977,-850.94381413,0.00025408,2]
[336989493,1725288638987,-850.94381413,0.00025408,2]
[336989494,1725288638996,-850.94381413,0.00025408,2]
[336989495,1725288639006,-850.94381413,0.00025408,2]
[336989496,1725288639015,-850.94381413,0.00025408,2]
[336989497,1725288639025,-850.94381413,0.00025408,2]
[336989498,1725288639034,-850.94381413,0.00025408,2]
[336989499,1725288639044,-850.94381413,0.00025408,2]
[336989500,1725288639053,-850.94381413,0.00025408,2]
[336989501,1725288639063,-850.94381413,0.00025408,2]
[336989502,1725288639073,-850.94381413,0.00025408,2]
[336989503,1725288639082,-850.94381413,0.00025408,2]
[336989504,1725288639091,-850.94381413,0.00025408,2]
[336989505,1725288639100,-850.94381413,0.00025408,2]
[336989506,1725288639109,-850.94381413,0.00025408,2]
[336989507,1725288639121,-850.94381413,0.00025408,2]
[336989508,1725288639130,-850.94381413,0.00025408,2]
[336989509,1725288639139,-850.94381413,0.00025408,2]
[336989510,1725288639152,-850.94381413,0.00025408,2]
[336989511,1725288639161,-850.94381413,0.00025408,2]
[336989512,1725288639170,-850.94381413,0.00025408,2]
[336989513,1725288639179,-850.94381413,0.00025408,2]
[336989514,1725288639189,-850.94381413,0.00025408,2]
[336989515,1725288639201,-850.94381413,0.00025408,2]
[336989516,1725288639211,-850.94381413,0.00025408,2]
[336989517,1725288639221,-850.94381413,0.00025408,2]
[336989518,1725288639231,-850.94381413,0.00025408,2]
[336989519,1725288639240,-850.94381413,0.00025408,2]
[336989520,1725288639249,-850.94381413,0.00025408,2]
[336989521,1725288639259,-850.94381413,0.00025408,2]
[336989522,1725288639268,-850.94381413,0.00025408,2]
[336989523,1725288639278,-850.94381413,0.00025408,2]
[336989524,1725288639287,-3000.0,0.0002541,2]
[336989525,1725288639296,-296.0,0.00025419,3]
[336989526,1725288639306,-3000.0,0.0002542,2]
[336989527,1725288639316,-888.01,0.00025429,3]
[336989528,1725288639325,-3000.0,0.0002543,2]
[336989529,1725288639335,-3000.0,0.0002544,2]
[336989530,1725288639345,-4935.12286343,0.0002544,3]
[336989531,1725288639356,-4935.12286343,0.00025448,3]
[336989532,1725288639366,-3000.0,0.0002545,2]
[336989533,1725288639377,-4935.12286343,0.00025458,3]
[336989534,1725288639387,-500.0,0.00025459,2]
[336989535,1725288639400,-500.0,0.00025459,2]
[336989536,1725288639416,-469.29853078,0.00025459,2]
[336989537,1725288639426,-500.0,0.00025459,2]
[336989538,1725288639436,-500.0,0.00025459,2]
[336989539,1725288639447,-500.0,0.00025459,2]
[336989540,1725288639457,-500.0,0.00025459,2]
[336989541,1725288639467,-500.0,0.00025459,2]
[336989542,1725288639477,-500.0,0.00025459,2]
[336989543,1725288639487,-100.19045204,0.00025459,2]
[336989544,1725288639501,-59.29225534,0.00025459,2]
[336989545,1725288639510,-500.0,0.00025459,2]
[336989546,1725288639520,-500.0,0.00025459,2]
[336989547,1725288639530,-500.0,0.00025459,2]
[336989548,1725288639539,-500.0,0.00025459,2]
[336989549,1725288639551,-500.0,0.00025459,2]
[336989550,1725288639560,-500.0,0.00025459,2]
[336989551,1725288639569,-500.0,0.00025459,2]
[336989552,1725288639579,-500.0,0.00025459,2]
[336989553,1725288639589,-500.0,0.00025459,2]
[336989554,1725288639598,-2032.17230566,0.0002546,11]
[336989555,1725288639668,-850.94381413,0.00025408,2]
[336989556,1725288639677,-1680.5640398,0.0002546,11]
[336989583,1725288640216,-1200.1068144,0.0002546,11]
[336989584,1725288640258,-2936.8,0.0002546,11]
[336989585,1725288640271,-26098.76528864,0.0002546,11]
[336989586,1725288640283,-3000.0,0.0002546,2]
[336989587,1725288640293,-408.68051,0.00025468,7]
[336989588,1725288640303,-408.68051,0.00025468,7]
[336989589,1725288640312,-9870.24572686,0.00025468,3]
[336989590,1725288640322,-3000.0,0.0002547,2]
[336989591,1725288640333,-159.86580835,0.00025473,2]
[336989592,1725288640343,-162.07014876,0.00025473,2]
[336989593,1725288640353,-161.045269,0.00025473,2]
[336989594,1725288640363,-500.0,0.00025473,2]
[336989595,1725288640372,-251.77936193,0.00025473,2]
[336989596,1725288640382,-500.0,0.00025473,2]
[336989597,1725288640391,-160.56880746,0.00025473,2]
[336989598,1725288640403,-500.0,0.00025473,2]
[336989599,1725288640412,-408.68051,0.00025478,7]
[336989600,1725288640423,-408.68051,0.00025478,7]
[336989601,1725288640432,-500.0,0.00025479,2]
[336989602,1725288640444,-576.66459602,0.00025479,2]
[336989603,1725288640455,-500.0,0.00025479,2]
[336989604,1725288640465,-3000.0,0.0002548,2]
[336989605,1725288640475,-408.68051,0.0002548,7]
[336989606,1725288640484,-408.68051,0.0002548,7]
[336989607,1725288640494,-3000.0,0.0002549,2]
[336989608,1725288640505,-3000.0,0.000255,2]
[336989609,1725288640515,-3000.0,0.0002551,2]
[336989610,1725288640525,-3000.0,0.0002552,2]
[336989611,1725288640535,-3000.0,0.0002553,2]
[336989612,1725288640544,-3000.0,0.0002554,2]
[336989613,1725288640554,-3000.0,0.0002555,2]
[336989614,1725288640564,-4935.12286343,0.0002555,3]
[336989615,1725288640573,-3000.0,0.0002556,2]
[336989616,1725288640583,-3000.0,0.0002557,2]
[336989617,1725288640593,-158.55764138,0.00025573,2]
[336989618,1725288640603,-350.9902402,0.00025573,2]
[336989619,1725288640614,-3000.0,0.0002558,2]
[336989620,1725288640623,-5477.120625,0.0002559,2]
[336989621,1725288640633,-500.0,0.00025616,2]
[336989622,1725288640643,-266.89527363,0.00025616,2]
[336989623,1725288640654,-500.0,0.00025753,2]
[336989624,1725288640663,-1000.5,0.00026,31]
[336989625,1725288640673,-1011.5,0.00026,31]
[336989626,1725288640683,-1000.0,0.00026021,2]
[336989627,1725288640693,-2500.0,0.00026566,2]
[336989628,1725288640704,-2500.0,0.00026575,2]
[336989629,1725288640714,-592.0,0.00026789,3]
[336989630,1725288640723,-408.68051,0.00026843,7]
[336989631,1725288640733,-408.68051,0.00026843,7]
[336989632,1725288640743,-500.0,0.00026919,2]
[336989633,1725288640753,-480.0,0.00027162,2]
[336989634,1725288640763,-160.251341,0.0002785,5]
[336989635,1725288640773,-587.0,0.00027893,2]
[336989636,1725288640782,-315.0,0.0003,2]
[336989637,1725288640791,-200.07119518,0.00030175,5]
[336989638,1725288640802,-167.14234681,0.00030175,2]
[336989639,1725288640814,-158.55892993,0.00030175,5]
[336989640,1725288640823,-823.0,0.00030682,2]
[336989641,1725288640833,-1061.4926893,0.00031598,2]
[336989642,1725288640843,-1077.0,0.00033751,2]
[336989643,1725288640853,-151.0,0.00037517,14]
[336989644,1725288640863,-151.0,0.00037517,14]
[336989645,1725288640873,-151.0,0.00037517,14]
[336989646,1725288640882,-1061.4926893,0.00037865,2]
[336989647,1725288640891,-4935.12286343,0.00039684,5]
[336989648,1725288640902,-4990.36402541,0.00039694,11]
[336989649,1725288640912,-23130.20138205,0.00039694,2]
[336989650,1725288640922,-408.68051,0.00039694,14]
[336989651,1725288640932,-408.68051,0.00039694,14]
[336989652,1725288640942,-151.0,0.00039726,14]
[336989653,1725288641004,-151.0,0.00039726,14]
[336989654,1725288641014,-151.0,0.00039726,14]
[336989655,1725288641023,-151.0,0.00039726,14]
[336989656,1725288641033,-151.0,0.00039726,14]
[336989657,1725288641042,-151.0,0.00039726,14]
[336989658,1725288641051,-153.522009,0.00039726,14]
[336989659,1725288641061,-153.0,0.00040947,2]
[336989660,1725288641070,-153.0,0.00040947,2]
[336989661,1725288641080,-151.0,0.00041095,14]
[336989662,1725288641089,-500.0,0.00041095,120]
[336989663,1725288641098,-151.0,0.00041096,120]
[336989664,1725288641108,-393.898187,0.00041096,120]
[336989665,1725288641117,-393.898187,0.00041096,120]
[336989666,1725288641126,-393.898187,0.00041096,120]
[336989667,1725288641136,-393.898187,0.00041096,120]
[336989668,1725288641146,-156.658455,0.00041096,120]
[336989669,1725288641158,-156.658455,0.00041096,120]
[336989670,1725288641167,-156.658455,0.00041096,120]
[336989671,1725288641177,-156.658455,0.00041096,120]
[336989672,1725288641187,-156.658455,0.00041096,120]
[336989673,1725288641200,-156.658455,0.00041096,120]
[336989674,1725288641210,-151.0,0.00041096,30]
[336989675,1725288641220,-151.0,0.00041096,120]
[336989676,1725288641230,-151.0,0.00041096,120]
[336989677,1725288641240,-151.0,0.00041096,120]
[336989678,1725288641250,-151.0,0.00041096,120]
[336989679,1725288641259,-151.0,0.00041096,120]
[336989680,1725288641268,-151.0,0.00041096,120]
[336989681,1725288641279,-151.0,0.00041096,120]
[336989682,1725288641289,-151.0,0.00041096,120]
[336989683,1725288641299,-269.454144,0.00041096,120]
[336989684,1725288641309,-151.0,0.00041096,120]
[336989685,1725288641319,-500.0,0.00041647,120]
[336989686,1725288641328,-500.0,0.00041657,120]
[336989687,1725288641339,-500.0,0.00041657,120]
[336989688,1725288641349,-151.0,0.00041667,120]
[336989689,1725288641359,-151.0,0.00041667,120]
[336989690,1725288641369,-156.658455,0.00041667,120]
[336989691,1725288641378,-156.658455,0.00041667,120]
[336989692,1725288641388,-500.0,0.00041667,120]
[336989693,1725288641399,-500.0,0.00041667,120]
[336989694,1725288641409,-500.0,0.00041667,120]
[336989695,1725288641429,-153.0,0.00041769,2]
[336989696,1725288641445,-153.0,0.00041769,2]
[336989697,1725288641463,-153.0,0.00041769,2]
[336989698,1725288641485,-153.0,0.00041769,2]
[336989699,1725288641503,-151.0,0.00041769,30]
[336989700,1725288641522,-151.0,0.00043785,120]
[336989701,1725288641539,-151.0,0.00043785,120]
[336989702,1725288641554,-4935.12286343,0.00043825,5]
[336989703,1725288641570,-500.0,0.00043835,120]
[336989704,1725288641589,-500.0,0.00043835,120]
[336989705,1725288641606,-500.0,0.00043835,120]
[336989706,1725288641619,-500.0,0.00043835,120]
[336989707,1725288641637,-500.0,0.00043835,120]
[336989708,1725288641655,-500.0,0.00043835,120]
[336989709,1725288641671,-500.0,0.00043835,120]
[336989710,1725288641683,-500.0,0.00043835,120]
[336989711,1725288641698,-408.68051,0.00043835,120]
[336989712,1725288641712,-151.0,0.00043835,120]
[336989713,1725288641728,-408.68051,0.00043835,120]
[336989714,1725288641745,-500.0,0.00043836,31]
[336989715,1725288641762,-500.0,0.00043836,31]
[336989716,1725288641777,-500.0,0.00043836,31]
[336989717,1725288641794,-500.0,0.00043836,31]
[336989718,1725288641809,-500.0,0.00043836,31]
[336989719,1725288641823,-500.0,0.00043836,31]
[336989720,1725288641837,-500.0,0.00043836,31]
[336989721,1725288641852,-500.0,0.00043836,31]
[336989722,1725288641867,-500.0,0.00043836,31]
[336989723,1725288641882,-364.94510388,0.00043836,31]
[336989724,1725288641896,-500.0,0.00043836,31]
[336989725,1725288641912,-500.0,0.00043836,31]
[336989726,1725288641927,-500.0,0.00043836,31]
[336989727,1725288641943,-500.0,0.00043836,31]
[336989728,1725288641959,-500.0,0.00043836,31]
[336989729,1725288641973,-500.0,0.00043836,31]
[336989730,1725288641988,-500.0,0.00043836,31]
[336989731,1725288642003,-500.0,0.00043873,10]
[336989732,1725288642017,-1061.4926893,0.00044133,2]
[336989733,1725288642032,-1000.0,0.00044421,10]
[336989734,1725288642047,-482.78597089,0.00044999,120]
[336989735,1725288642062,-2000.0,0.00045,120]
[336989736,1725288642154,-1500.0,0.00045319,10]
[336989737,1725288642172,-223.981048,0.000462,12]
[336989738,1725288642181,-2000.0,0.00046424,10]
[336989739,1725288642191,-4847.61888326,0.00046536,2]
[336989740,1725288642203,-4847.61888326,0.00046801,2]
[336989741,1725288642213,-4847.61888326,0.00046866,2]
[336989742,1725288642222,-151.0,0.00046955,120]
[336989743,1725288642231,-393.898187,0.00046955,120]
[336989744,1725288642241,-393.898187,0.00046955,120]
[336989745,1725288642250,-1000.0,0.00047,47]
[336989746,1725288642260,-4847.61888326,0.00047136,2]
[336989747,1725288642269,-150.112233,0.000473,13]
[336989748,1725288642279,-4935.12286343,0.00047347,5]
[336989749,1725288642289,-151.0,0.00047513,120]
[336989750,1725288642298,-4847.61888326,0.00047549,2]
[336989751,1725288642307,-151.0,0.00047596,120]
[336989752,1725288642316,-194.942982,0.00047596,120]
[336989753,1725288642326,-156.658455,0.00047596,120]
[336989754,1725288642335,-156.658455,0.00047596,120]
[336989755,1725288642346,-408.68051,0.00047676,120]
[336989756,1725288642355,-408.68051,0.00047676,120]
[336989757,1725288642365,-2507.09217137,0.00047689,10]
[336989758,1725288642374,-4847.61888331,0.00047691,2]
[336989759,1725288642384,-500.0,0.00047945,120]
[336989760,1725288642393,-500.0,0.00047945,120]
[336989761,1725288642410,-500.0,0.00047945,120]
[336989762,1725288642419,-500.0,0.00047967,120]
[336989763,1725288642429,-151.0,0.00047968,120]
[336989764,1725288642438,-151.0,0.00047968,120]
[336989765,1725288642448,-151.0,0.00047989,120]
[336989767,1725288642457,-151.0,0.00047989,120]
[336989769,1725288642467,-3252.96,0.00048,120]
[336989770,1725288642477,-184.0,0.00048,90]
[336989771,1725288642487,-157.0,0.00048,90]
[336989772,1725288642497,-500.0,0.00048073,4]
[336989773,1725288642507,-4935.12286343,0.00048079,6]
[336989774,1725288642516,-136406.42320899,0.00048088,14]
[336989782,1725288642724,-76505.9454694,0.00048088,14]
[336989829,1725288643210,-369.06255427,0.000254,3]
[336989859,1725288643475,-471.95630274,0.000254,3]
[336990128,1725288646243,-62663.98114299,0.000254,3]
[336990130,1725288646253,-500.0,0.00025573,2]
[336990132,1725288646262,-1000.0,0.00026121,2]
[336990134,1725288646272,-1000.0,0.00027019,2]
[336990136,1725288646283,-52660.62359184,0.00048088,14]
[336990139,1725288646302,-142336.01166113,0.00048088,14]
[336990142,1725288646314,-1760.4214713,0.00048088,14]
[336990144,1725288646325,-2037.35885071,0.00048088,14]
[336990146,1725288646337,-2135.67124547,0.00048088,14]
[336990181,1725289499471,-400.0,0.00021,14]
[336990182,1725289499499,-300.0,0.00023523,2]
[336990183,1725289499526,-300.0,0.00023523,2]
[336990184,1725289499556,-24000.0,0.00023524,2]
[336990215,1725289832208,-310.0,0.00024293,2]
[336990320,1725289838433,-2972.1126618,0.00024293,2]
[336990321,1725289838444,-250.0,0.00024475,2]
[336990322,1725289838454,-250.0,0.00024542,2]
[336990323,1725289838464,-250.0,0.00024609,2]
[336990324,1725289838473,-250.0,0.00024676,2]
[336990325,1725289838482,-250.0,0.00024743,2]
[336990326,1725289838492,-250.0,0.0002481,2]
[336990327,1725289838501,-250.0,0.00024877,2]
[336990328,1725289838511,-250.0,0.00024945,2]
[336990329,1725289838522,-300.0,0.00024999,2]
[336990330,1725289838535,-300.0,0.00024999,2]
[336990331,1725289838544,-1000.0,0.00025,2]
[336990332,1725289838559,-1000.0,0.00025,2]
[336990333,1725289838569,-1000.0,0.00025,2]
[336990334,1725289838578,-1000.0,0.00025,2]
[336990335,1725289838588,-1000.0,0.00025,2]
[336990336,1725289838599,-1000.0,0.00025,2]
[336990337,1725289838611,-1000.0,0.00025,2]
[336990338,1725289838624,-781.0,0.00025,2]
[336990339,1725289838635,-1000.0,0.00025,2]
[336990340,1725289838645,-1000.0,0.00025,2]
[336990341,1725289838655,-1000.0,0.00025,2]
[336990342,1725289838664,-1000.0,0.00025,2]
[336990343,1725289838674,-1000.0,0.00025,2]
[336990344,1725289838685,-1000.0,0.00025,2]
[336990345,1725289838695,-1000.0,0.00025,2]
[336990346,1725289838704,-1000.0,0.00025,2]
[336990347,1725289838714,-1000.0,0.00025,2]
[336990348,1725289838724,-1000.0,0.00025,2]
[336990349,1725289838734,-181.0,0.00025,2]
[336990350,1725289838743,-250.0,0.00025012,2]
[336990351,1725289838754,-250.0,0.00025079,2]
[336990352,1725289838763,-250.0,0.00025146,2]
[336990353,1725289838773,-250.0,0.00025213,2]
[336990354,1725289838785,-250.0,0.0002528,2]
[336990355,1725289838801,-250.0,0.00025347,2]
[336990356,1725289838822,-3000.0,0.000254,2]
[336990357,1725289838840,-3000.0,0.0002541,2]
[336990358,1725289838859,-250.0,0.00025414,2]
[336990359,1725289838879,-3000.0,0.0002542,2]
[336990360,1725289838899,-3000.0,0.0002543,2]
[336990361,1725289838918,-3000.0,0.0002544,2]
[336990362,1725289838936,-3000.0,0.0002545,2]
[336990363,1725289838953,-3000.0,0.0002546,2]
[336990364,1725289838971,-500.0,0.00025468,2]
[336990365,1725289838992,-500.0,0.00025468,2]
[336990366,1725289839008,-500.0,0.00025468,2]
[336990367,1725289839021,-500.0,0.00025468,2]
[336990368,1725289839042,-862.79194297,0.00025468,2]
[336990369,1725289839058,-500.0,0.00025468,2]
[336990370,1725289839074,-500.0,0.00025468,2]
[336990371,1725289839087,-441.16281248,0.00025468,2]
[336990372,1725289839103,-500.0,0.00025468,2]
[336990373,1725289839117,-862.79194297,0.00025468,2]
[336990374,1725289839132,-375.57932489,0.00025468,2]
[336990375,1725289839147,-500.0,0.00025468,2]
[336990376,1725289839161,-512.12158342,0.00025468,2]
[336990377,1725289839176,-862.79194297,0.00025468,2]
[336990378,1725289839190,-862.79194297,0.00025468,2]
[336990379,1725289839204,-862.79194297,0.00025468,2]
[336990380,1725289839218,-862.79194297,0.00025468,2]
[336990381,1725289839233,-862.79194297,0.00025468,2]
[336990382,1725289839249,-862.79194297,0.00025468,2]
[336990383,1725289839264,-862.79194297,0.00025468,2]
[336990384,1725289839279,-862.79194297,0.00025468,2]
[336990385,1725289839295,-862.79194297,0.00025468,2]
[336990386,1725289839309,-862.79194297,0.00025468,2]
[336990387,1725289839323,-862.79194297,0.00025468,2]
[336990388,1725289839339,-862.79194297,0.00025468,2]
[336990389,1725289839355,-862.79194297,0.00025468,2]
[336990390,1725289839370,-862.79194297,0.00025468,2]
[336990391,1725289839384,-862.79194297,0.00025468,2]
[336990392,1725289839398,-862.79194297,0.00025468,2]
[336990393,1725289839413,-862.79194297,0.00025468,2]
[336990394,1725289839429,-862.79194297,0.00025468,2]
[336990395,1725289839444,-862.79194297,0.00025468,2]
[336990396,1725289839459,-862.79194297,0.00025468,2]
[336990397,1725289839473,-500.0,0.00025468,2]
[336990398,1725289839569,-862.79194297,0.00025468,2]
[336990399,1725289839580,-862.79194297,0.00025468,2]
[336990400,1725289839590,-862.79194297,0.00025468,2]
[336990401,1725289839600,-862.79194297,0.00025468,2]
[336990402,1725289839610,-862.79194297,0.00025468,2]
[336990403,1725289839619,-862.79194297,0.00025468,2]
[336990404,1725289839629,-862.79194297,0.00025468,2]
[336990405,1725289839640,-862.79194297,0.00025468,2]
[336990406,1725289839650,-862.79194297,0.00025468,2]
[336990407,1725289839659,-862.79194297,0.00025468,2]
[336990408,1725289839670,-862.79194297,0.00025468,2]
[336990409,1725289839682,-862.79194297,0.00025468,2]
[336990410,1725289839692,-862.79194297,0.00025468,2]
[336990411,1725289839701,-862.79194297,0.00025468,2]
[336990412,1725289839710,-862.79194297,0.00025468,2]
[336990413,1725289839720,-862.79194297,0.00025468,2]
[336990414,1725289839730,-862.79194297,0.00025468,2]
[336990415,1725289839739,-862.79194297,0.00025468,2]
[336990416,1725289839749,-862.79194297,0.00025468,2]
[336990417,1725289839759,-862.79194297,0.00025468,2]
[336990418,1725289839768,-862.79194297,0.00025468,2]
[336990420,1725289839778,-862.79194297,0.00025468,2]
[336990421,1725289839788,-36750.58,0.00025469,3]
[336990422,1725289839798,-3000.0,0.0002547,2]
[336990423,1725289839807,-500.0,0.00025479,2]
[336990424,1725289839817,-266.89527363,0.00025479,2]
[336990425,1725289839827,-500.0,0.00025479,2]
[336990427,1725289839836,-500.0,0.00025479,2]
[336990429,1725289839846,-500.0,0.00025479,2]
[336990430,1725289839855,-500.0,0.00025479,2]
[336990431,1725289839865,-3000.0,0.0002548,2]